fUST/lending_fUST_20250723
["ID","MTS","AMOUNT","RATE_DAILY","PERIOD"]
[374387114,1753284646961,-460.0,0.00021917,2]
[374387116,1753284646970,-2149.86,0.00021917,2]
[374387118,1753284646980,-460.0,0.00021917,2]
[374387120,1753284646989,-460.0,0.00021917,2]
[374387123,1753284646999,-460.0,0.00021917,2]
[374387125,1753284647009,-460.0,0.00021917,2]
[374387127,1753284647019,-460.0,0.00021917,2]
[374387128,1753284647028,-161.92566,0.00021917,2]
[374387130,1753284647038,-460.0,0.00021917,2]
[374387132,1753284647047,-620.32,0.00021917,2]
[374387134,1753284647057,-161.92566,0.00021917,2]
[374387136,1753284647066,-152.467607,0.00021917,2]
[374387138,1753284647075,-1935.16,0.00021917,2]
[374387140,1753284647085,-460.0,0.00021917,2]
[374387142,1753284647094,-500.0,0.00021917,2]
[374387144,1753284647104,-500.0,0.00021917,2]
[374387146,1753284647113,-500.0,0.00021917,2]
[374387148,1753284647122,-500.0,0.00021917,2]
[374387150,1753284647136,-500.0,0.00021917,2]
[374387153,1753284647149,-500.0,0.00021917,2]
[374387155,1753284647159,-500.0,0.00021917,2]
[374387157,1753284647169,-804.88,0.00021917,2]
[374387158,1753284647178,-1132.02,0.00021917,2]
[374387160,1753284647188,-460.0,0.00021917,2]
[374387162,1753284647197,-472.82,0.00021917,2]
[374387164,1753284647206,-2564.0,0.00021917,2]
[374387166,1753284647216,-489.23,0.00021917,2]
[374387168,1753284647225,-460.0,0.00021917,2]
[374387170,1753284647234,-1322.9240316,0.00021918,7]
[374387172,1753284647244,-150.46368495,0.00021918,2]
[374387174,1753284647254,-200.0,0.00021918,2]
[374387176,1753284647264,-621.69907411,0.00021973,2]
[374387178,1753284647273,-500.0,0.00021973,2]
[374387180,1753284647283,-500.0,0.00021973,2]
[374387182,1753284647293,-500.0,0.00021973,2]
[374387184,1753284647302,-500.0,0.00021973,2]
[374387186,1753284647311,-500.0,0.00021973,2]
[374387188,1753284647323,-500.94168668,0.00021973,2]
[374387190,1753284647333,-500.0,0.00021973,2]
[374387192,1753284647343,-500.0,0.00021973,2]
[374387194,1753284647352,-269.31324823,0.00021973,2]
[374387196,1753284647362,-158.27900585,0.00021973,2]
[374387198,1753284647372,-500.0,0.00021973,2]
[374387200,1753284647384,-500.0,0.00021973,2]
[374387202,1753284647394,-500.0,0.00021973,2]
[374387204,1753284647404,-565.466147,0.00022,7]
[374387206,1753284647413,-565.466147,0.00022,7]
[374387208,1753284647423,-3410.41,0.00022,7]
[374387210,1753284647432,-1595.1,0.00022,7]
[374387212,1753284647442,-12176.83,0.00022,7]
[374387214,1753284647451,-39436.15,0.00022,2]
[374387216,1753284647461,-151.0,0.00022,7]
[374387230,1753284647581,-151.0,0.00022,7]
[374387232,1753284647591,-12622.36869388,0.00022,7]
[374387234,1753284647601,-160.0,0.00022,7]
[374387236,1753284647611,-214.67886746,0.00022,7]
[374387238,1753284647620,-1000.0,0.00022077,2]
[374387240,1753284647633,-1000.0,0.00022077,2]
[374387242,1753284647643,-1000.0,0.00022077,2]
[374387244,1753284647653,-1000.0,0.00022077,2]
[374387246,1753284647664,-1000.0,0.00022077,2]
[374387248,1753284647674,-1000.0,0.00022077,2]
[374387251,1753284647684,-501.72112936,0.00022077,2]
[374387253,1753284647694,-1000.0,0.00022077,2]
[374387254,1753284647704,-1005.32976117,0.00022119,2]
[374387257,1753284647714,-1000.0,0.00022119,2]
[374387258,1753284647723,-1000.0,0.00022119,2]
[374387261,1753284647733,-1000.0,0.00022119,2]
[374387263,1753284647742,-1000.0,0.00022119,2]
[374387265,1753284647752,-1000.0,0.00022119,2]
[374387267,1753284647761,-1000.0,0.00022119,2]
[374387268,1753284647771,-1000.0,0.00022119,2]
[374387270,1753284647781,-1000.0,0.00022119,2]
[374387272,1753284647790,-1123.3398421,0.00022119,2]
[374387275,1753284647799,-1000.89543393,0.00022119,2]
[374387276,1753284647809,-1000.0,0.00022119,2]
[374387279,1753284647818,-1000.0,0.00022119,2]
[374387281,1753284647828,-1057.1355728,0.00022119,2]
[374387282,1753284647837,-1000.0,0.00022119,2]
[374387284,1753284647847,-505.18002943,0.00022119,2]
[374387287,1753284647857,-1000.0,0.00022119,2]
[374387289,1753284647866,-1000.0,0.00022119,2]
[374387291,1753284647876,-172.8828,0.00022191,7]
[374387292,1753284647885,-172.8828,0.00022191,7]
[374387294,1753284647895,-151.0,0.00022191,7]
[374387296,1753284647904,-460.0,0.00022191,2]
[374387298,1753284647914,-528.7961412,0.00022191,2]
[374387300,1753284647923,-460.0,0.00022191,2]
[374387302,1753284647933,-664.28,0.00022191,2]
[374387304,1753284647943,-460.0,0.00022191,2]
[374387306,1753284647952,-460.0,0.00022191,2]
[374387308,1753284647962,-1670.44,0.00022191,2]
[374387310,1753284647973,-151.0,0.00022191,7]
[374387312,1753284647982,-151.0,0.00022191,7]
[374387314,1753284647991,-594.75,0.00022191,2]
[374387316,1753284648000,-460.0,0.00022191,2]
[374387318,1753284648010,-7718.72,0.00022191,2]
[374387320,1753284648020,-151.0,0.00022191,7]
[374387322,1753284648029,-460.0,0.00022191,2]
[374387324,1753284648041,-2108.24,0.00022191,2]
[374387326,1753284648050,-214.79318456,0.00022191,2]
[374387328,1753284648060,-460.0,0.00022191,2]
[374387330,1753284648070,-2407.52,0.00022191,2]
[374387333,1753284648080,-460.0,0.00022191,2]
[374387334,1753284648089,-460.0,0.00022191,2]
[374387336,1753284648099,-460.0,0.00022191,2]
[374387338,1753284648110,-1740.13,0.00022191,2]
[374387340,1753284648119,-460.0,0.00022191,2]
[374387342,1753284648130,-460.0,0.00022191,2]
[374387344,1753284648141,-2149.86,0.00022191,2]
[374387346,1753284648151,-631.5096,0.00022191,7]
[374387348,1753284648161,-631.5096,0.00022191,7]
[374387350,1753284648171,-460.0,0.00022191,2]
[374387352,1753284648180,-460.0,0.00022191,2]
[374387354,1753284648190,-460.0,0.00022191,2]
[374387356,1753284648200,-460.0,0.00022191,2]
[374387358,1753284648210,-460.0,0.00022191,2]
[374387360,1753284648221,-460.0,0.00022191,2]
[374387363,1753284648231,-620.32,0.00022191,2]
[374387364,1753284648240,-151.0,0.00022191,7]
[374387367,1753284648250,-1935.16,0.00022191,2]
[374387368,1753284648259,-804.88,0.00022191,2]
[374387370,1753284648268,-1132.02,0.00022191,2]
[374387372,1753284648277,-460.0,0.00022191,2]
[374387374,1753284648286,-151.0,0.00022191,7]
[374387376,1753284648296,-472.82,0.00022191,2]
[374387379,1753284648306,-2564.0,0.00022191,2]
[374387381,1753284648316,-489.23,0.00022191,2]
[374387383,1753284648326,-460.0,0.00022191,2]
[374387384,1753284648335,-151.0,0.000222,9]
[374387387,1753284648346,-2023.9,0.00022208,5]
[374387389,1753284648356,-560.0,0.00022218,2]
[374387391,1753284648366,-500.0,0.0002236,2]
[374387393,1753284648377,-426.607169,0.00022396,7]
[374387395,1753284648387,-426.607169,0.00022396,7]
[374387397,1753284648397,-383.736464,0.00022465,7]
[374387399,1753284648407,-383.736464,0.00022465,7]
[374387400,1753284648416,-460.0,0.00022465,2]
[374387402,1753284648426,-460.0,0.00022465,2]
[374387404,1753284648437,-664.28,0.00022465,2]
[374387407,1753284648447,-460.0,0.00022465,2]
[374387409,1753284648458,-460.0,0.00022465,2]
[374387411,1753284648468,-1670.44,0.00022465,2]
[374387413,1753284648478,-594.75,0.00022465,2]
[374387415,1753284648489,-460.0,0.00022465,2]
[374387417,1753284648501,-7718.72,0.00022465,2]
[374387419,1753284648511,-460.0,0.00022465,2]
[374387420,1753284648520,-2108.24,0.00022465,2]
[374387423,1753284648531,-460.0,0.00022465,2]
[374387425,1753284648541,-2407.52,0.00022465,2]
[374387426,1753284648551,-460.0,0.00022465,2]
[374387428,1753284648560,-460.0,0.00022465,2]
[374387430,1753284648571,-1740.13,0.00022465,2]
[374387432,1753284648581,-460.0,0.00022465,2]
[374387434,1753284648590,-460.0,0.00022465,2]
[374387437,1753284648600,-2149.86,0.00022465,2]
[374387439,1753284648610,-460.0,0.00022465,2]
[374387441,1753284648620,-301.48087753,0.00022465,2]
[374387442,1753284648631,-358.51447499,0.00022465,2]
[374387444,1753284648640,-314.31863649,0.00022465,2]
[374387446,1753284648649,-460.0,0.00022465,2]
[374387448,1753284648659,-161.92566,0.00022465,7]
[374387450,1753284648669,-460.0,0.00022465,2]
[374387452,1753284648679,-620.32,0.00022465,2]
[374387455,1753284648689,-161.92566,0.00022465,7]
[374387457,1753284648699,-1935.16,0.00022465,2]
[374387459,1753284648709,-804.88,0.00022465,2]
[374387460,1753284648718,-1132.02,0.00022465,2]
[374387462,1753284648728,-460.0,0.00022465,2]
[374387465,1753284648738,-472.82,0.00022465,2]
[374387467,1753284648747,-2564.0,0.00022465,2]
[374387469,1753284648757,-489.23,0.00022465,2]
[374387471,1753284648767,-547.56613861,0.00022465,2]
[374387473,1753284648776,-150.0,0.0002248,2]
[374387475,1753284648786,-8623.15916588,0.0002249,7]
[374387476,1753284648795,-151.0,0.000225,8]
[374387479,1753284648805,-75131.73636979,0.000225,2]
[374387480,1753284648814,-1974.34638018,0.000225,15]
[374387482,1753284648823,-500.0,0.00022511,2]
[374387484,1753284648832,-1094.79640088,0.00022521,2]
[374387487,1753284648841,-299.77258459,0.00022521,2]
[374387489,1753284648852,-1118.52113841,0.00022521,2]
[374387491,1753284648861,-308.34046914,0.00022521,2]
[374387492,1753284648870,-1000.0,0.00022521,2]
[374387495,1753284648882,-414.71052898,0.00022521,2]
[374387497,1753284648892,-1000.0,0.00022521,2]
[374387499,1753284648902,-2023.9,0.00022529,5]
[374387501,1753284648912,-587.0,0.00022548,2]
[374387503,1753284648921,-632.66,0.0002256,5]
[374387505,1753284648931,-151.0,0.000226,10]
[374387507,1753284648940,-348.21195986,0.00022603,2]
[374387509,1753284648950,-1500.0,0.00022624,2]
[374387511,1753284648960,-1500.0,0.00022624,2]
[374387513,1753284648970,-1097.99224489,0.00022624,2]
[374387515,1753284648979,-1513.72045867,0.00022624,2]
[374387517,1753284648989,-1500.0,0.00022624,2]
[374387519,1753284648999,-1500.0,0.00022624,2]
[374387521,1753284649008,-1129.31904846,0.00022624,2]
[374387523,1753284649017,-317.364658,0.00022636,3]
[374387525,1753284649027,-275.049371,0.00022636,3]
[374387527,1753284649036,-632.66,0.0002266,6]
[374387529,1753284649045,-1500.0,0.00022667,2]
[374387531,1753284649054,-1500.0,0.00022667,2]
[374387533,1753284649063,-1500.0,0.00022667,2]
[374387535,1753284649073,-1500.0,0.00022667,2]
[374387537,1753284649082,-1500.0,0.00022667,2]
[374387539,1753284649091,-1500.0,0.00022667,2]
[374387541,1753284649101,-1500.0,0.00022667,2]
[374387543,1753284649111,-1503.73116406,0.00022667,2]
[374387545,1753284649121,-1577.91857325,0.00022667,2]
[374387547,1753284649132,-1500.0,0.00022667,2]
[374387549,1753284649142,-1502.478894,0.00022667,2]
[374387551,1753284649151,-460.0,0.00022739,2]
[374387553,1753284649160,-460.0,0.00022739,2]
[374387555,1753284649170,-664.28,0.00022739,2]
[374387557,1753284649179,-1148.130776,0.00022739,7]
[374387559,1753284649188,-1148.130776,0.00022739,7]
[374387561,1753284649198,-460.0,0.00022739,2]
[374387563,1753284649208,-1670.44,0.00022739,2]
[374387565,1753284649218,-534.589728,0.00022739,7]
[374387567,1753284649228,-534.589728,0.00022739,7]
[374387569,1753284649237,-594.75,0.00022739,2]
[374387571,1753284649247,-432.83126345,0.00022739,2]
[374387573,1753284649257,-7718.72,0.00022739,2]
[374387575,1753284649266,-460.0,0.00022739,2]
[374387577,1753284649275,-2108.24,0.00022739,2]
[374387579,1753284649284,-460.0,0.00022739,2]
[374387581,1753284649294,-2407.52,0.00022739,2]
[374387583,1753284649303,-460.0,0.00022739,2]
[374387585,1753284649312,-460.0,0.00022739,2]
[374387587,1753284649323,-1740.13,0.00022739,2]
[374387589,1753284649332,-460.0,0.00022739,2]
[374387591,1753284649342,-460.0,0.00022739,2]
[374387593,1753284649351,-2149.86,0.00022739,2]
[374387595,1753284649361,-153.413491,0.00022739,7]
[374387597,1753284649370,-460.0,0.00022739,2]
[374387599,1753284649381,-153.413491,0.00022739,7]
[374387601,1753284649391,-460.0,0.00022739,2]
[374387603,1753284649401,-460.0,0.00022739,2]
[374387605,1753284649411,-620.32,0.00022739,2]
[374387607,1753284649420,-1935.16,0.00022739,2]
[374387609,1753284649430,-804.88,0.00022739,2]
[374387611,1753284649440,-1132.02,0.00022739,2]
[374387613,1753284649450,-460.0,0.00022739,2]
[374387615,1753284649459,-472.82,0.00022739,2]
[374387617,1753284649469,-2564.0,0.00022739,2]
[374387619,1753284649479,-489.23,0.00022739,2]
[374387621,1753284649489,-632.66,0.0002276,3]
[374387623,1753284649503,-660.0,0.00022766,2]
[374387625,1753284649513,-4386.39108129,0.000228,2]
[374387627,1753284649523,-1339.59858964,0.000228,2]
[374387630,1753284649533,-500.0,0.00022844,2]
[374387632,1753284649543,-2023.9,0.0002285,6]
[374387634,1753284649552,-632.66,0.0002286,5]
[374387636,1753284649564,-150.0,0.00022873,2]
[374387638,1753284649580,-162167.58061048,0.000229,7]
[374387651,1753284649697,-2358.3912174,0.000229,7]
[374387680,1753284649972,-460.0,0.00019726,2]
[374387681,1753284649982,-89.08006231,0.0002,2]
[374387695,1753284650171,-370.91993769,0.0002,2]
[374387696,1753284650181,-135.18298867,0.00022465,2]
[374387697,1753284650192,-1512.03052509,0.00022465,2]
[374387698,1753284650204,-722.43648624,0.00022465,2]
[374387700,1753284650213,-19821.16351376,0.000229,7]
[374387702,1753284650237,-49542.95310443,0.000229,7]
[374387704,1753284650248,-5143.27627293,0.000229,7]
[374390501,1753285070364,418.876596,0.00013699,2]
[374390503,1753285555095,-204.31266519,0.00019078,2]
[374390504,1753285559084,-439.87030718,0.00019078,2]
[374390506,1753285630270,-150.0,0.000189,2]
[374390507,1753285630291,-156.47206113,0.00019077,2]
[374390508,1753285630313,-0.57933203,0.00019177,2]
[374390509,1753285641131,-299.42066797,0.00019177,2]
[374390510,1753285641157,-38.49709642,0.00019177,2]
[374390520,1753285771088,-726.81127763,0.00019078,2]
[374390521,1753285771111,-300.0,0.00019176,2]
[374390522,1753285771136,-114.09320976,0.00019177,2]
[374390523,1753285771159,-338.63749595,0.00019177,2]
[374390524,1753285771183,-249.73724043,0.00019177,2]
[374390643,1753285833228,-300.0,0.00019177,2]
[374390645,1753285833239,-250.26275957,0.00019177,2]
[374390647,1753285833249,-500.0,0.00019177,2]
[374390649,1753285833259,-500.0,0.00019177,2]
[374390651,1753285833269,-500.0,0.00019177,2]
[374390653,1753285833279,-460.0,0.00019178,2]
[374390655,1753285833289,-460.0,0.00019178,2]
[374390657,1753285833299,-462.60736716,0.00019178,2]
[374390659,1753285833309,-460.0,0.00019178,2]
[374390661,1753285833319,-460.0,0.00019178,2]
[374390663,1753285833328,-145.43779687,0.00019178,2]
[374391093,1753285838382,-314.56220313,0.00019178,2]
[374391095,1753285838393,-11.20017263,0.00019178,2]
[374391097,1753285838404,-426.33664379,0.00019178,2]
[374391114,1753285838552,-22.46318358,0.00019178,2]
[374391116,1753285838562,-214.64909614,0.00019178,2]
[374391118,1753285838571,-463.23115986,0.00019178,2]
[374391120,1753285838581,-460.0,0.00019178,2]
[374391121,1753285838590,-460.0,0.00019178,2]
[374391124,1753285838600,-1000.0,0.00019178,2]
[374391126,1753285838610,-460.0,0.00019178,2]
[374391127,1753285838619,-460.0,0.00019178,2]
[374391129,1753285838629,-150.82375081,0.00019178,2]
[374391131,1753285838638,-500.0,0.00019178,2]
[374391133,1753285838649,-460.0,0.00019178,2]
[374391135,1753285838659,-460.0,0.00019178,2]
[374391137,1753285838668,-460.0,0.00019178,2]
[374391139,1753285838678,-500.0,0.00019178,2]
[374391141,1753285838687,-460.0,0.00019178,2]
[374391143,1753285838697,-460.0,0.00019178,2]
[374391145,1753285838707,-460.0,0.00019178,2]
[374391147,1753285838716,-460.0,0.00019178,2]
[374391149,1753285838726,-375.65423193,0.00019178,2]
[374391151,1753285838736,-460.0,0.00019178,2]
[374391153,1753285838745,-460.0,0.00019178,2]
[374391155,1753285838755,-197.24,0.00019178,2]
[374391157,1753285838765,-460.0,0.00019178,2]
[374391159,1753285838776,-460.0,0.00019178,2]
[374391161,1753285838787,-1748.95,0.00019178,2]
[374391163,1753285838796,-460.0,0.00019178,2]
[374391165,1753285838805,-460.0,0.00019178,2]
[374391167,1753285838816,-460.0,0.00019178,2]
[374391169,1753285838826,-287.85927966,0.00019178,2]
[374391171,1753285838835,-460.0,0.00019178,2]
[374391173,1753285838844,-460.0,0.00019178,2]
[374391174,1753285838856,-6561.82,0.00019178,2]
[374391177,1753285838866,-460.0,0.00019178,2]
[374391178,1753285838875,-460.0,0.00019178,2]
[374391180,1753285838885,-630.07,0.00019178,2]
[374391182,1753285838894,-460.0,0.00019178,2]
[374391184,1753285838904,-357.23329802,0.00019178,2]
[374391186,1753285838916,-735.50670198,0.00019178,2]
[374391188,1753285838926,-460.0,0.00019178,2]
[374391190,1753285838935,-494.89,0.00019178,2]
[374391192,1753285838945,-460.0,0.00019178,2]
[374391194,1753285838954,-460.0,0.00019178,2]
[374391196,1753285838963,-460.0,0.00019178,2]
[374391198,1753285838973,-515.7678328,0.00019178,2]
[374391200,1753285838982,-460.0,0.00019178,2]
[374391202,1753285838991,-460.0,0.00019178,2]
[374391204,1753285839001,-460.0,0.00019178,2]
[374391206,1753285839010,-460.0,0.00019178,2]
[374391208,1753285839019,-465.94155733,0.00019178,2]
[374391210,1753285839028,-460.0,0.00019178,2]
[374391212,1753285839038,-460.0,0.00019178,2]
[374391214,1753285839047,-460.0,0.00019178,2]
[374391216,1753285839056,-460.0,0.00019178,2]
[374391218,1753285839065,-1722.28,0.00019178,2]
[374391220,1753285839074,-460.0,0.00019178,2]
[374391222,1753285839083,-460.0,0.00019178,2]
[374391224,1753285839093,-531.73,0.00019178,2]
[374391226,1753285839102,-460.0,0.00019178,2]
[374391228,1753285839111,-460.0,0.00019178,2]
[374391230,1753285839120,-460.0,0.00019178,2]
[374391232,1753285839130,-463.17519662,0.00019178,2]
[374391234,1753285839139,-460.0,0.00019178,2]
[374391236,1753285839150,-360.0,0.00019178,2]
[374391238,1753285839159,-460.0,0.00019178,2]
[374391240,1753285839168,-460.0,0.00019178,2]
[374391242,1753285839177,-460.0,0.00019178,2]
[374391244,1753285839186,-1942.1,0.00019178,2]
[374391246,1753285839196,-460.0,0.00019178,2]
[374391248,1753285839205,-460.0,0.00019178,2]
[374391250,1753285839214,-460.0,0.00019178,2]
[374391252,1753285839223,-455.24924495,0.00019178,2]
[374391253,1753285839233,-460.0,0.00019178,2]
[374391255,1753285839243,-460.0,0.00019178,2]
[374391257,1753285839252,-460.0,0.00019178,2]
[374391259,1753285839261,-1769.93,0.00019178,2]
[374391261,1753285839271,-2164.08,0.00019178,2]
[374391264,1753285839280,-460.0,0.00019178,2]
[374391265,1753285839290,-460.0,0.00019178,2]
[374391267,1753285839300,-460.0,0.00019178,2]
[374391269,1753285839310,-460.0,0.00019178,2]
[374391271,1753285839320,-904.81,0.00019178,2]
[374391273,1753285839330,-704.27,0.00019178,2]
[374391275,1753285839339,-460.0,0.00019178,2]
[374391277,1753285839349,-460.0,0.00019178,2]
[374391279,1753285839358,-1522.62,0.00019178,2]
[374391281,1753285839368,-460.0,0.00019178,2]
[374391283,1753285839377,-460.0,0.00019178,2]
[374391285,1753285839386,-234.738,0.00019178,2]
[374391287,1753285839397,-460.0,0.00019178,2]
[374391289,1753285839407,-6824.82,0.00019178,2]
[374391291,1753285839416,-460.0,0.00019178,2]
[374391293,1753285839426,-460.0,0.00019178,2]
[374391295,1753285839435,-358.71358579,0.00019178,2]
[374391297,1753285839445,-460.0,0.00019178,2]
[374391299,1753285839455,-460.0,0.00019178,2]
[374391301,1753285839464,-460.0,0.00019178,2]
[374391303,1753285839473,-460.0,0.00019178,2]
[374391305,1753285839483,-460.0,0.00019178,2]
[374391307,1753285839492,-460.0,0.00019178,2]
[374391309,1753285839503,-460.0,0.00019178,2]
[374391311,1753285839512,-460.0,0.00019178,2]
[374391312,1753285839522,-2243.5,0.00019178,2]
[374391313,1753285839532,-460.0,0.00019178,2]
[374391314,1753285839541,-460.0,0.00019178,2]
[374391315,1753285839551,-460.0,0.00019178,2]
[374391316,1753285839560,-460.0,0.00019178,2]
[374391317,1753285839570,-460.0,0.00019178,2]
[374391319,1753285839579,-460.0,0.00019178,2]
[374391321,1753285839588,-1485.74,0.00019178,2]
[374391323,1753285839598,-1568.78,0.00019178,2]
[374391325,1753285839608,-460.0,0.00019178,2]
[374391327,1753285839617,-542.78,0.00019178,2]
[374391329,1753285839627,-460.0,0.00019178,2]
[374391331,1753285839636,-460.0,0.00019178,2]
[374391333,1753285839648,-596.27,0.00019178,2]
[374391336,1753285839658,-460.0,0.00019178,2]
[374391337,1753285839667,-460.0,0.00019178,2]
[374391339,1753285839677,-460.0,0.00019178,2]
[374391342,1753285839691,-1938.63,0.00019178,2]
[374391345,1753285839705,-460.0,0.00019178,2]
[374391347,1753285839718,-490.05866865,0.00019178,2]
[374391349,1753285839731,-465.09298735,0.00019178,2]
[374391351,1753285839742,-460.0,0.00019178,2]
[374391353,1753285839753,-460.0,0.00019178,2]
[374391356,1753285839764,-581.24,0.00019178,2]
[374391358,1753285839778,-460.0,0.00019178,2]
[374391360,1753285839791,-460.0,0.00019178,2]
[374391362,1753285839803,-460.0,0.00019178,2]
[374391365,1753285839814,-260.05161896,0.00019178,2]
[374391367,1753285839827,-460.0,0.00019178,2]
[374391369,1753285839839,-217.75760405,0.00019178,2]
[374391371,1753285839851,-460.0,0.00019178,2]
[374391373,1753285839863,-460.0,0.00019178,2]
[374391376,1753285839876,-460.0,0.00019178,2]
[374391378,1753285839889,-223.30238,0.00019178,2]
[374391380,1753285839902,-500.0,0.00019451,2]
[374391383,1753285839915,-460.0,0.00019452,2]
[374391385,1753285839927,-460.0,0.00019452,2]
[374391387,1753285839938,-460.0,0.00019452,2]
[374391389,1753285839950,-460.0,0.00019452,2]
[374391391,1753285839962,-460.0,0.00019452,2]
[374391394,1753285839972,-369.58098645,0.00019452,2]
[374391396,1753285839983,-460.0,0.00019452,2]
[374391398,1753285839994,-460.0,0.00019452,2]
[374391400,1753285840007,-460.0,0.00019452,2]
[374391403,1753285840019,-1748.95,0.00019452,2]
[374391405,1753285840031,-460.0,0.00019452,2]
[374391407,1753285840042,-443.46108589,0.00019452,2]
[374391409,1753285840052,-293.8,0.00019452,2]
[374391411,1753285840063,-460.0,0.00019452,2]
[374391413,1753285840074,-6561.82,0.00019452,2]
[374391416,1753285840086,-460.0,0.00019452,2]
[374391418,1753285840097,-630.07,0.00019452,2]
[374391420,1753285840109,-460.0,0.00019452,2]
[374391422,1753285840121,-1092.74,0.00019452,2]
[374391425,1753285840132,-460.0,0.00019452,2]
[374391427,1753285840145,-460.0,0.00019452,2]
[374391429,1753285840157,-460.0,0.00019452,2]
[374391431,1753285840169,-460.0,0.00019452,2]
[374391434,1753285840181,-460.0,0.00019452,2]
[374391436,1753285840192,-206.14702574,0.00019452,2]
[374391438,1753285840205,-464.15,0.00019452,2]
[374391441,1753285840217,-460.0,0.00019452,2]
[374391443,1753285840228,-1722.28,0.00019452,2]
[374391445,1753285840239,-460.0,0.00019452,2]
[374391447,1753285840249,-460.0,0.00019452,2]
[374391449,1753285840259,-460.0,0.00019452,2]
[374391451,1753285840271,-460.0,0.00019452,2]
[374391453,1753285840283,-1942.1,0.00019452,2]
[374391455,1753285840295,-460.0,0.00019452,2]
[374391457,1753285840308,-460.0,0.00019452,2]
[374391459,1753285840320,-460.0,0.00019452,2]
[374391461,1753285840331,-460.0,0.00019452,2]
[374391463,1753285840341,-460.0,0.00019452,2]
[374391465,1753285840351,-460.0,0.00019452,2]
[374391467,1753285840362,-1769.93,0.00019452,2]
[374391470,1753285840372,-2164.08,0.00019452,2]
[374391472,1753285840384,-460.0,0.00019452,2]
[374391474,1753285840396,-460.0,0.00019452,2]
[374391476,1753285840409,-460.0,0.00019452,2]
[374391478,1753285840419,-460.0,0.00019452,2]
[374391480,1753285840429,-904.81,0.00019452,2]
[374391482,1753285840439,-704.27,0.00019452,2]
[374391484,1753285840450,-1522.62,0.00019452,2]
[374391487,1753285840461,-6824.82,0.00019452,2]
[374391489,1753285840471,-460.0,0.00019452,2]
[374391491,1753285840482,-460.0,0.00019452,2]
[374391493,1753285840493,-460.0,0.00019452,2]
[374391495,1753285840504,-460.0,0.00019452,2]
[374391497,1753285840516,-460.0,0.00019452,2]
[374391500,1753285840528,-2243.5,0.00019452,2]
[374391502,1753285840538,-460.0,0.00019452,2]
[374391504,1753285840549,-460.0,0.00019452,2]
[374391506,1753285840560,-460.0,0.00019452,2]
[374391508,1753285840571,-1485.74,0.00019452,2]
[374391510,1753285840581,-1568.78,0.00019452,2]
[374391512,1753285840592,-460.0,0.00019452,2]
[374391514,1753285840603,-542.78,0.00019452,2]
[374391517,1753285840614,-460.0,0.00019452,2]
[374391519,1753285840625,-460.0,0.00019452,2]
[374391521,1753285840635,-596.27,0.00019452,2]
[374391523,1753285840645,-460.0,0.00019452,2]
[374391525,1753285840658,-1938.63,0.00019452,2]
[374391527,1753285840669,-460.0,0.00019452,2]
[374391529,1753285840679,-581.24,0.00019452,2]
[374391531,1753285840691,-460.0,0.00019452,2]
[374391533,1753285840702,-460.0,0.00019452,2]